[Event "2nd Serbia Open Masters 2022"]
[Site "Novi Sad"]
[Date "2022.06.29"]
[Round "2.35"]
[White "Souhardo Basak"]
[Black "Ioannidis, Evgenios"]
[Result "0-1"]
[ECO "C06"]
[WhiteElo "2357"]
[BlackElo "2459"]
[Annotator "TA"]
[PlyCount "84"]
[EventDate "2022.06.28"]
[EventType "swiss"]
[EventCountry "SRB"]
[SourceTitle "playchess.com"]
[Source "ChessBase"]
[SourceQuality "1"]
[TimeControl "40/5400+30:900+30"]

{[%evp 15,84,11,12,14,7,0,50,45,25,20,30,22,33,-2,-10,-45,-50,-32,-31,-39,-43,-92,-34,-492,-48,-108,-97,-104,-97,-87,-106,-104,-104,-104,-99,-106,-88,-130,-125,-123,-97,-124,-47,-160,-108,-108,-107,-116,-124,-250,-253,-273,-277,-367,-374,-393,-360,-405,-369,-327,-320,-313,-204,-375,-380,-754,-747,-779,-752,-724,-711]} 1. e4 {[%emt 0:00:04]} e6 {[%emt 0:00:23]} 2. d4 {[%emt 0:00:17]} d5 {[%emt 0:00:11]} 3. Nd2 {[%emt 0:00:07]} Be7 {[%emt 0:00:28]} 4. Ngf3 {[%emt 0:00:15]} Nf6 {[%emt 0:00:51]} 5. e5 {[%emt 0:00:12]} Nfd7 {[%emt 0:00:32]} 6. Bd3 {[%emt 0:00:21]} c5 {[%emt 0:00:36]} 7. c3 {[%emt 0:00:11]} Nc6 {[%emt 0:00:31]} 8. O-O {[%emt 0:00:15]} a5 {[%emt 0:01:22]} 9. a4 {[%emt 0:00:29] now scores much better than the old 9.Re1. C06: French Tarrasch: 3...Nf6 4 e5 Nfd7 5 Bd3 main lines.} O-O {[%emt 0:01:15]} 10. Re1 {[%emt 0:08:20]} f6 {[%emt 0:01:33]} (10... cxd4 $11 11. cxd4 Nb4) 11. exf6 $14 {[%emt 0:02:56] White is slightly better.} Nxf6 {[%emt 0:00:27][%cal Bd7f6,Bf6g4,Bg4f2][%mdl 32]} 12. Nf1 {[%emt 0:16:00]} cxd4 {[%emt 0:01:53]} 13. cxd4 {[%emt 0:00:03]} Qb6 {[%emt 0:00:35] [#]} 14. Ng3 $146 {[%emt 0:03:31]} ({Predecessor:} 14. h3 Bd7 15. Be3 Rac8 16. Rc1 Qxb2 17. Rb1 Qa3 18. Rb3 Qd6 19. Rxb7 Rb8 20. Rxb8 Qxb8 {0-1 (35) Boschma,B (2338)-Beckmann,F (2368) ICCF email 2012}) 14... Ng4 {[%emt 0:02:34] Threatening ...e5.} 15. h3 {[%emt 0:10:35] [#]} Nxf2 {[%emt 0:00:54]} 16. Kxf2 {[%emt 0:00:03] And now Kg1 would win.} Bh4 {[%emt 0:00:22]} 17. Be3 {[%emt 0:21:49][%cal Of2g1] Hoping for Kg1!} h6 {[%emt 0:03:13]} 18. Bc2 {[%emt 0:09:16]} (18. Rc1 $15 {deserves consideration.}) 18... Qc7 {[%emt 0:01:20]} (18... Nb4 $1 $17 19. Re2 Bd7) 19. Qd3 $2 {[%emt 0:00:39][%mdl 8192]} Rf5 $2 {[%emt 0:21:53]} (19... Qxg3+ $19 20. Kg1 Rxf3) 20. Qe2 {[%emt 0:01:41]} Qxg3+ $17 {[%emt 0:03:08]} 21. Kg1 {[%emt 0:00:31] [#]} Rxf3 {[%emt 0:00:46][%mdl 512]} 22. Qxf3 {[%emt 0:00:02]} Qxf3 {[%emt 0:00:06] The board is on fire.} 23. gxf3 {[%emt 0:00:02]} Bxe1 {[%emt 0:00:07]} 24. Rxe1 {[%emt 0:00:10]} Nb4 {[%emt 0:02:44]} 25. Rc1 {[%emt 0:06:25]} Bd7 {[%emt 0:01:01]} 26. Bd1 {[%emt 0:02:19]} Nd3 {[%emt 0:02:06][%csl LRb2,LRc1]} 27. Rb1 {[%emt 0:05:30]} Rf8 {[%emt 0:09:50]} 28. Kg2 {[%emt 0:01:27]} e5 {[%emt 0:04:06] Black is much more active.} ({Better is} 28... Rc8 $17 29. f4 Kf7) 29. Bb3 {[%emt 0:01:00] [#]} (29. dxe5 $1 $15 Rf5 30. e6 Bxe6 31. h4) 29... exd4 {[%emt 0:04:12]} ({Black should play} 29... Bxh3+ $1 {[%mdl 512]} 30. Kg3 Be6 31. dxe5 Nxe5) 30. Bxd5+ {[%emt 0:02:00]} Kh8 {[%emt 0:00:08]} 31. Rd1 {[%emt 0:00:22]} Bf5 {[%emt 0:04:32]} 32. Bd2 {[%emt 0:06:33]} (32. Be4 $17) 32... Nxb2 $19 {[%emt 0:01:14]} 33. Rc1 {[%emt 0:00:49]} b6 {[%emt 0:00:30]} ({Worse is} 33... Nxa4 34. Bxa5 b6 35. Bb4 $17) 34. Rc7 {[%emt 0:02:32]} Nxa4 {[%emt 0:00:50][%cal Oa4c3]} 35. Kg3 {[%emt 0:00:43]} Rd8 {[%emt 0:02:22]} 36. Bb3 {[%emt 0:00:29]} Nc5 {[%emt 0:00:54]} 37. Bc4 {[%emt 0:00:01]} Rc8 {[%emt 0:07:23]} 38. Re7 {[%emt 0:00:26]} Nd7 {[%emt 0:00:07]} 39. Bb5 {[%emt 0:01:00]} (39. Bd3 Bxd3 40. Rxd7) 39... Nf6 {[%emt 0:00:06]} 40. Rb7 $2 {[%emt 0:00:00]} (40. Re5 Bg6 41. Kf2) 40... Rc2 {[%emt 0:00:00] Black is clearly winning.} 41. Kf4 {[%emt 0:01:47]} Bg6 {[%emt 0:00:46]} ({Not} 41... Rxd2 $2 42. Kxf5 Rb2 43. Ba6 $19) 42. Be1 {[%emt 0:00:12]} Rc5 {[%emt 0:01:17] Weighted Error Value: White=0.67/Black=0.33} 0-1

[Event "2nd Serbia Open Masters 2022"]
[Site "Novi Sad"]
[Date "2022.06.29"]
[Round "2.36"]
[White "Pasztor, Balazs"]
[Black "Sturt, Raven"]
[Result "1/2-1/2"]
[ECO "B90"]
[WhiteElo "2336"]
[BlackElo "2438"]
[Annotator "TA"]
[PlyCount "137"]
[EventDate "2022.06.28"]
[EventType "swiss"]
[EventCountry "SRB"]
[SourceTitle "playchess.com"]
[Source "ChessBase"]
[SourceQuality "1"]
[TimeControl "40/5400+30:900+30"]

{[%evp 11,137,-3,8,16,19,31,11,22,24,12,31,16,33,33,50,-46,-56,-62,-75,-42,-43,-54,-52,-52,-44,-82,-59,-65,-63,-66,-73,-37,-58,-102,-72,-114,-47,-35,0,0,0,0,0,-33,200,206,199,51,64,0,0,0,0,-54,-44,-53,176,96,82,72,229,39,24,16,18,-5,4,-97,-69,-95,-74,-81,0,0,0,0,0,0,0,0,0,0,0,0,0,-81,-79,-91,-68,-260,-243,-233,-105,-96,-69,-81,-98,-117,-104,-93,-75,-93,-88,-81,-7,-423,-120,-243,-161,-367,-165,-320,379,352,457,467,506,489,858,370,353,346,491,267,293,-172,660,626]} 1. e4 {[%emt 0:00:03]} c5 {[%emt 0:03:23]} 2. Nf3 {[%emt 0:00:35]} d6 {[%emt 0:00:14]} 3. d4 {[%emt 0:00:07]} cxd4 {[%emt 0:00:03]} 4. Nxd4 {[%emt 0:00:08]} Nf6 {[%emt 0:00:04]} 5. Nc3 {[%emt 0:00:09]} a6 {[%emt 0:00:10]} 6. Rg1 {[%emt 0:00:58]} e5 {[%emt 0:00:20]} 7. Nb3 {[%emt 0:00:07] B90: Sicilian Najdorf: Unusual White 6th moves, 6 Be3 Ng4 and 6 Be3 e5.} h5 {[%emt 0:00:05] Prevents g4.} 8. Bg5 {[%emt 0:00:41]} Be6 {[%emt 0:00:27]} 9. Qd2 {[%emt 1:32:12] The position is equal.} Nbd7 {[%emt 0:01:12]} 10. O-O-O {[%emt 0:00:00] [#]} b5 $146 {[%emt 0:01:46]} ({Predecessor:} 10... Rc8 11. f4 Be7 12. Bd3 exf4 13. Nd4 Ne5 14. Nf5 Bxf5 15. exf5 Qa5 16. Bxf4 O-O {1-0 (87) Rathanvel,V (2445)-Perez,M (2417) Chess.com INT 2020}) 11. f4 {[%emt 0:00:00]} b4 {[%emt 0:05:07]} 12. Nd5 {[%emt 0:00:00]} Nxe4 {[%emt 0:00:28]} 13. Qxb4 {[%emt 0:00:00]} (13. Bxd8 $14 Nxd2 14. Rxd2 Kxd8 15. Nxb4) 13... Nxg5 $15 {[%emt 0:03:43]} 14. fxg5 {[%emt 0:00:00]} Qxg5+ {[%emt 0:01:39]} 15. Kb1 {[%emt 0:00:00]} Bxd5 {[%emt 0:09:33]} 16. Rxd5 {[%emt 0:00:00]} Qe3 {[%emt 0:00:14]} 17. Rh1 {[%emt 0:00:00]} Be7 {[%emt 0:02:50]} 18. Rd3 {[%emt 0:00:00]} Qb6 {[%emt 0:06:03]} 19. Qa4 {[%emt 0:00:00]} Ra7 {[%emt 0:03:06]} 20. Be2 {[%emt 0:00:00]} h4 {[%emt 0:06:00]} (20... Qf2 $5 {[%cal Rf2e2]} 21. Bf3 O-O $15) 21. Rf1 {[%emt 0:00:00]} O-O {[%emt 0:00:13]} 22. g3 {[%emt 0:00:00]} Rb8 {[%emt 0:09:05]} 23. gxh4 {[%emt 0:00:00]} Qb4 {[%emt 0:46:15]} (23... a5 $17 {aiming for ...Bf6.} 24. Rg3 (24. Qc4 Nf6 $17) 24... Nf6) 24. Qc6 {[%emt 0:00:00]} Nf6 {[%emt 0:00:00]} 25. Qg2 {[%emt 0:00:00]} Qe4 {[%emt 0:00:00]} 26. Bf3 {[%emt 0:00:57]} Qxh4 {[%emt 0:00:00]} 27. Bc6 {[%emt 0:03:29]} (27. Rg1 g6 28. Nd2 Kg7 $17) 27... Rb4 $2 {[%emt 0:00:00]} (27... Rc7 $15 28. Rg3 Bf8) 28. Rh3 $1 $18 {[%emt 0:01:47][%mdl 1024] White has strong compensation.} Qc4 {[%emt 0:00:00]} (28... Qg4 $2 29. Rg3 Qh5 30. Rxg7+ Kh8 31. Rg1 $18) 29. Nd2 {[%emt 0:01:17] Dancing on a razor blade.} (29. Rg1 g6 $15) (29. Rg3 $1 $18 {[%cal Rg3g7]} g6 30. a3 Rxb3 31. Rxb3 (31. cxb3 Qd4 $16)) 29... Qe6 $1 $14 {[%emt 0:00:00]} 30. Rg3 {[%emt 0:01:40] White is more active.} (30. Rg1 Rg4 31. Rg3 Rxg3 32. hxg3 (32. Qxg3 g6 $17) 32... d5 $17) ({White should try} 30. c4 $1 $14) 30... Rg4 $11 {[%emt 0:00:00]} 31. Ne4 {[%emt 0:00:11] Strongly threatening Nxf6+.} Rxg3 {[%emt 0:00:00]} 32. hxg3 {[%emt 0:00:58]} (32. Nxf6+ $11 Bxf6 33. hxg3) 32... Ng4 $1 $15 {[%emt 0:00:00]} 33. Qe2 {[%emt 0:01:00]} f5 $2 {[%emt 0:00:00] [#]} (33... Rc7 $1 $15 {stays ahead.} 34. Be8 Bf8) 34. c4 $1 {[%emt 0:00:30]} Qg6 {[%emt 0:00:00]} (34... fxe4 $2 35. Bd5 Qxd5 36. cxd5 $18) (34... Kh8 35. Rh1+) 35. Bd5+ {[%emt 0:00:24]} Kh7 $2 {[%emt 0:00:00]} (35... Kf8 $16) 36. Nc3 $2 {[%emt 0:00:35]} ({Don't take} 36. Rh1+ $6 Nh6 $16) (36. Nf2 $1 $18 {[%cal Rf2g4]}) 36... Nh6 $14 {[%emt 0:00:00]} 37. Qf2 {[%emt 0:00:27]} Rd7 {[%emt 0:00:00]} 38. Ka1 {[%emt 0:00:28]} Bd8 {[%emt 0:00:00]} 39. g4 {[%emt 0:00:44]} (39. Rh1 $11 Re7 40. a3) 39... Qxg4 $17 {[%emt 0:02:24]} 40. Rg1 {[%emt 0:00:00]} Bh4 {[%emt 0:00:00]} 41. Qf1 {[%emt 0:04:45]} Qf4 {[%emt 0:02:49]} (41... Qh5 $17) 42. Qg2 $1 $36 {[%emt 0:01:13][%mdl 2048] White is more active.} g5 {[%emt 0:02:04] Hoping for ...e4.} 43. Be6 {[%emt 0:01:27]} Rg7 {[%emt 0:05:13]} 44. Rf1 $1 {[%emt 0:01:38]} Qd4 {[%emt 0:01:55]} 45. Bxf5+ {[%emt 0:04:25]} Nxf5 {[%emt 0:02:52]} 46. Rxf5 {[%emt 0:00:07]} Qxc4 {[%emt 0:00:17]} 47. Qf3 {[%emt 0:01:04]} Kh6 {[%emt 0:00:54] White must now prevent ...g4.} 48. Rf6+ {[%emt 0:01:53]} (48. Rf8 $1 $11 {remains equal.} Rg8 49. Qf6+ Kh5 50. Rf7) 48... Rg6 $17 {[%emt 0:00:19] ...g4 is the strong threat.} 49. Rf8 {[%emt 0:00:56] [#] White threatens Rh8+ and mate.} Kg7 {[%emt 0:01:34] Against Rh8} 50. Rb8 $2 {[%emt 0:02:48]} ({White has to play} 50. Qa8 $1 $15) 50... Rf6 $19 {[%emt 0:00:43]} 51. Qh5 {[%emt 0:00:18]} Qf1+ {[%emt 0:03:23]} (51... Qf7 $19 52. Qh8+ Kg6) 52. Nb1 $17 {[%emt 0:00:05]} Rf8 {[%emt 0:00:04] Against Qh8+} 53. Rb7+ {[%emt 0:00:38]} Rf7 {[%emt 0:00:04]} 54. Rb8 {[%emt 0:00:21]} Qf3 {[%emt 0:01:51]} 55. Qh8+ {[%emt 0:00:42]} Kg6 {[%emt 0:00:01]} 56. Rb6 {[%emt 0:01:01][%csl LRa6,LRd6,LRe5]} Qf6 {[%emt 0:02:39]} 57. Qb8 {[%emt 0:00:24]} Rd7 {[%emt 0:00:05]} (57... Rf8 $17 58. Qc7 Rd8) 58. Nd2 $2 {[%emt 0:00:38][%mdl 8192]} (58. Qe8+ $11 {and White stays safe.} Rf7 59. Qb8) 58... g4 $2 {[%emt 0:00:16]} (58... Qd8 $19 {has better winning chances.} 59. Nc4 Qxb8 60. Rxb8 Bf2) 59. Qc8 {[%emt 0:00:22]} (59. Qg8+ $17 Kh5 60. Qe8+ Rf7 61. Rb7) 59... Qf5 {[%emt 0:01:53]} 60. Qe8+ $2 {[%emt 0:00:38]} (60. Qg8+ Kh5 61. Qe8+ Kg5 62. Qg8+ Qg6 63. Qc8) 60... Qf7 {[%emt 0:01:01]} (60... Kg7 $142 61. Rb8 Kh6) 61. Qa8 $2 {[%emt 0:01:10]} (61. Qxe5 Bg5 62. a3) 61... Be1 $4 {[%emt 0:00:26][%mdl 8192]} (61... Bg5 $19 62. Nb1 Rd8 63. Qe4+ Qf5) 62. Qe4+ $18 {[%emt 0:00:00]} Qf5 {[%emt 0:00:55]} 63. Qxe1 {[%emt 0:00:00]} Kg7 {[%emt 0:00:27]} 64. a3 {[%emt 0:00:03]} Qf4 {[%emt 0:00:11]} (64... a5 $142 65. Rb8 Qf4) 65. Ne4 {[%emt 0:00:18]} (65. Rb4 $142) 65... Rc7 {[%emt 0:00:15] And now ...Rc1+ would win.} 66. Nc3 {[%emt 0:00:57]} g3 {[%emt 0:00:09]} (66... Rf7 {was called for.} 67. Rb4 (67. Rxd6 Qf1 $18) 67... Qf1 68. Rxg4+ Kf8) 67. Rxd6 {[%emt 0:00:36]} (67. Rb4 $142 Qf3 68. Qd2) 67... g2 {[%emt 0:02:16]} 68. Rd2 $4 {[%emt 0:01:36][%mdl 8192] [#]} ({Don't go for} 68. Rxa6 $2 Qf1 69. Qb1 Qxb1+ 70. Nxb1 g1=Q $19) (68. Rd1 $18 {was the only winning move.} Rf7 69. Qg1) 68... Qf1 $4 {[%emt 0:00:30][%mdl 8192] [#]} (68... Qxd2 $3 $19 {[%mdl 512]} 69. Qxd2 g1=Q+ 70. Nd1 Qg4) 69. Rxg2+ $3 {[%emt 0:00:30][%mdl 33280] White used his chance.  Weighted Error Value: White=0.45/Black=0.42. An unexpected result.} 1/2-1/2

[Event "2nd Serbia Open Masters 2022"]
[Site "Novi Sad"]
[Date "2022.06.29"]
[Round "2.37"]
[White "Culum, Sanjin"]
[Black "Shyaamnikhil P"]
[Result "0-1"]
[ECO "E00"]
[WhiteElo "2287"]
[BlackElo "2443"]
[Annotator "TA"]
[PlyCount "66"]
[EventDate "2022.06.28"]
[EventType "swiss"]
[EventCountry "SRB"]
[SourceTitle "playchess.com"]
[Source "ChessBase"]
[SourceQuality "1"]
[TimeControl "40/5400+30:900+30"]

{[%evp 9,66,-6,-6,-8,-5,-5,0,-41,7,0,0,-12,-6,-6,-8,-14,-8,-11,-12,-43,-38,-58,-22,-22,-18,-20,-20,-21,-20,-24,-26,-25,-18,-19,-20,-21,-18,-37,-17,-1137,-1129,-1129,0,-1068,0,-1012,-986,-1279,-1252,-1483,-1483,-1811,-1729,-29992,-29993,-29993,-29994,-29994,-29995]} 1. d4 {[%emt 0:00:05]} Nf6 {[%emt 0:05:05]} 2. c4 {[%emt 0:00:22]} e6 {[%emt 0:01:25]} 3. g3 {[%emt 0:00:28]} Bb4+ {[%emt 0:02:53]} 4. Bd2 {[%emt 0:00:47]} a5 {[%emt 0:01:43]} 5. Nc3 {[%emt 0:09:56]} O-O {[%emt 0:05:32]} 6. Bg2 {[%emt 0:05:01] E00: Catalan Bogo-Indian (3 g3 Bb4+).} d5 {[%emt 0:01:09]} 7. Nf3 {[%emt 0:05:48]} c6 {[%emt 0:04:59]} 8. b3 {[%emt 0:07:49] The position is equal.} Nbd7 {[%emt 0:04:40]} (8... Ne4 $15 9. Rc1 Nxd2 10. Nxd2 b6) 9. O-O {[%emt 0:02:04]} b6 {[%emt 0:03:20] [#]} 10. a3 $146 {[%emt 0:12:09]} ({Predecessor:} 10. e4 dxe4 11. Ng5 Bb7 12. Ngxe4 Be7 13. Bf4 Nxe4 14. Nxe4 Nf6 15. Qc2 Nxe4 16. Qxe4 {1-0 (33) Zhu,Y (2432)-Favaloro,A (2260) Tarvisio 2017}) 10... Be7 {[%emt 0:08:42]} 11. cxd5 {[%emt 0:14:12]} cxd5 {[%emt 0:00:49]} 12. Qb1 {[%emt 0:03:33]} Ba6 {[%emt 0:06:31]} 13. a4 {[%emt 0:06:20]} Bb4 {[%emt 0:04:50]} 14. Nb5 {[%emt 0:02:16]} Ne4 {[%emt 0:00:44]} 15. Qb2 {[%emt 0:05:31]} Nxd2 {[%emt 0:08:58]} 16. Nxd2 {[%emt 0:00:07]} Rc8 {[%emt 0:00:23] [#] Strongly threatening ...Bxb5.} 17. Rac1 {[%emt 0:01:14]} Qe7 {[%emt 0:08:49]} 18. Rxc8 {[%emt 0:02:35]} Rxc8 {[%emt 0:00:07]} 19. Rc1 {[%emt 0:00:12]} Rxc1+ {[%emt 0:04:00]} (19... Qd8 {is more complex.} 20. e3 Bxb5 21. axb5 h6) 20. Qxc1 {[%emt 0:00:06]} Bxd2 {[%emt 0:00:15]} 21. Qxd2 {[%emt 0:00:08]} Bxb5 {[%emt 0:00:15]} 22. axb5 $11 {[%emt 0:00:05][%mdl 4096] Endgame KQB-KQN} Qa3 {[%emt 0:00:21]} 23. Qc3 {[%emt 0:01:50] Hoping for Qc7.} a4 {[%emt 0:12:45]} 24. Qc6 $2 {[%emt 0:08:54][%mdl 8192] [#]} (24. Qc8+ $11 Nf8 25. bxa4 Qxa4 26. e3) 24... axb3 $1 $19 {[%emt 0:00:34]} 25. Qxd7 {[%emt 0:00:09]} Qc1+ {[%emt 0:05:27]} 26. Bf1 {[%emt 0:00:07][%cal Rd7e8]} g6 $2 {[%emt 0:03:33]} (26... h6 $19 27. Qe8+ Kh7) 27. Qd8+ $2 {[%emt 0:06:15][%mdl 8192]} (27. e4 $11) 27... Kg7 {[%emt 0:00:06] White must now prevent ...b2.} 28. Qd6 {[%emt 0:00:37]} b2 {[%emt 0:00:30]} 29. Qe5+ {[%emt 0:00:14]} Kh6 {[%emt 0:01:32]} 30. Qd6 {[%emt 0:02:56]} b1=Q {[%emt 0:00:18][%csl Gb1][%cal Rc1f1]} 31. Qf8+ {[%emt 0:00:06]} Kh5 {[%emt 0:00:08][%csl Gb1][%cal Rc1f1] Black mates.} 32. g4+ {[%emt 0:01:12]} Kxg4 {[%emt 0:00:10][%csl Gb1][%cal Rc1f1]} 33. f3+ {[%emt 0:00:48]} Kh5 {[%emt 0:00:07] Weighted Error Value: White=1.08/Black=0.21 (precise)} 0-1

[Event "2nd Serbia Open Masters 2022"]
[Site "Novi Sad"]
[Date "2022.06.29"]
[Round "2.38"]
[White "Adarsh Tripathi"]
[Black "Agmanov, Zhandos"]
[Result "0-1"]
[ECO "B12"]
[WhiteElo "2179"]
[BlackElo "2420"]
[Annotator "TA"]
[PlyCount "100"]
[EventDate "2022.06.28"]
[EventType "swiss"]
[EventCountry "SRB"]
[SourceTitle "playchess.com"]
[Source "ChessBase"]
[SourceQuality "1"]
[TimeControl "40/5400+30:900+30"]

{[%evp 12,100,0,0,0,-44,-27,-31,-34,-31,-2,-14,-5,-35,-35,-36,-23,-58,-74,-61,13,6,39,-30,0,-25,0,-14,-14,-125,-128,-130,-131,-132,-131,-134,-128,-117,-118,-96,-22,-171,-105,-127,-124,-102,-114,-114,-60,-38,-58,-206,-206,-275,-262,-274,-270,-260,-235,-284,-218,-232,-218,-449,-443,-421,-418,-509,-471,-487,-481,-469,-435,-435,-428,-489,-456,-643,-613,-712,-703,-951,-951,-852,-719,-2238,-2071,-29977,-29977,-29976,-1265]} 1. e4 {[%emt 0:09:37]} c6 {[%emt 0:00:26]} 2. d4 {[%emt 0:00:07]} d5 {[%emt 0:00:12]} 3. e5 {[%emt 0:00:05]} Bf5 {[%emt 0:00:32]} 4. h4 {[%emt 0:00:05]} h5 {[%emt 0:00:26]} 5. c4 {[%emt 0:00:11]} e6 {[%emt 0:01:38]} 6. Nc3 {[%emt 0:00:08]} Ne7 {[%emt 0:01:19][%cal Bg8e7,Be7g6,Bg6e5,Be5f7][%mdl 32]} 7. Bg5 {[%emt 0:01:34]} Qb6 $1 {[%emt 0:05:11][%mdl 4] is more profitable than 7...dxc4 at the moment. B12: Caro-Kann: Advance Variation.} 8. b3 {[%emt 0:06:02]} Nd7 {[%emt 0:01:01] [#]} 9. c5 $146 {[%emt 0:04:04]} ({Predecessor:} 9. Nge2 f6 10. exf6 gxf6 11. Be3 O-O-O 12. Ng3 Bg6 13. c5 Qc7 14. b4 e5 15. Be2 {0-1 (43) Gevorgyan,M (2255)-Girya,O (2488) Moscow 2019}) 9... Qc7 {[%emt 0:05:52] Black is slightly better.} 10. Be2 {[%emt 0:00:05]} Ng6 {[%emt 0:05:09]} (10... O-O-O $5 {[%cal Rf7f6]}) 11. Bxh5 {[%emt 0:05:00] [#]} Ngxe5 {[%emt 0:23:50][%cal Od7c5] White must now prevent ...Nxc5!} 12. Be2 {[%emt 0:08:31]} (12. Kf1 $5 {[%cal Rh5e2]}) 12... f6 {[%emt 0:00:22]} 13. Be3 {[%emt 0:07:06]} Nf7 {[%emt 0:01:15]} 14. Bg4 {[%emt 0:00:30]} Bxg4 {[%emt 0:01:55]} 15. Qxg4 {[%emt 0:00:07]} f5 {[%emt 0:00:59]} (15... e5 $1 $15) 16. Qg6 $11 {[%emt 0:01:41]} Nf6 {[%emt 0:03:09]} 17. Nge2 {[%emt 0:04:05] Inhibits f4.} (17. Nf3 $14) 17... O-O-O {[%emt 0:11:22]} 18. O-O-O {[%emt 0:00:29]} Re8 {[%emt 0:06:14]} 19. f3 $1 {[%emt 0:00:46] Against Ng4} Qd7 {[%emt 0:13:03]} 20. g4 {[%emt 0:15:53]} (20. h5 $11) 20... fxg4 $1 $17 {[%emt 0:04:04]} 21. fxg4 {[%emt 0:00:04]} e5 {[%emt 0:00:37]} 22. Rdf1 {[%emt 0:00:07] aiming for g5.} exd4 {[%emt 0:04:23]} 23. Bxd4 {[%emt 0:00:07]} Ne5 {[%emt 0:04:11]} 24. Bxe5 {[%emt 0:00:05]} Rxe5 {[%emt 0:00:01]} 25. g5 {[%emt 0:00:07]} Ne8 {[%emt 0:01:35]} (25... Ne4 $17 26. Nxe4 Rxe4) 26. Rf7 {[%emt 0:00:24]} (26. b4 $1 $11 {and White stays safe.}) 26... Qg4 {[%emt 0:00:18]} ({Not} 26... Rxg5 27. hxg5 Rxh1+ 28. Kc2 $11) ({Better is} 26... Be7 $1 $19 27. Nd4 Bxg5+ $1 {[%mdl 512]} 28. Kb1 Rh6 29. Rxd7 Rxg6) 27. Rf4 {[%emt 0:01:56]} Qg2 {[%emt 0:00:44]} 28. Rg1 {[%emt 0:03:08]} Qh2 $36 {[%emt 0:00:01][%mdl 2048] Black is really pushing.} 29. b4 {[%emt 0:02:14] [#]} Rxe2 {[%emt 0:00:13]} (29... Be7 $1 $17 30. Kd2 a5) 30. Nxe2 $15 {[%emt 0:00:16]} Qxe2 {[%emt 0:00:01] Dancing on a razor blade.} 31. Rgf1 {[%emt 0:00:10] Black converts the advantage convincingly.} (31. Qf5+ $1 $15 Kd8 32. Qg4 Qxg4 33. Rgxg4) 31... Be7 $19 {[%emt 0:00:51] Strongly threatening ...Nc7.} 32. Kb1 {[%emt 0:03:16]} Kd8 {[%emt 0:00:50][%cal Oh8h4] ...Rxh4! is the strong threat.} 33. Qc2 {[%emt 0:03:02]} Qxc2+ {[%emt 0:01:03]} 34. Kxc2 {[%emt 0:00:05]} g6 {[%emt 0:00:08][%cal Bg7g6,Bg6h5,Bh5h4][%mdl 32]} 35. Rh1 {[%emt 0:16:29]} Bxg5 {[%emt 0:00:45]} 36. Rf7 {[%emt 0:02:03]} Nc7 {[%emt 0:02:39]} ({Inferior is} 36... Rxh4 37. Rxh4 Bxh4 38. Rxb7) 37. h5 $2 {[%emt 0:03:58]} (37. Rg7) 37... gxh5 {[%emt 0:00:19]} 38. Rg1 {[%emt 0:00:14]} Be7 {[%emt 0:00:21] Threatens to win with ...Ne6.} 39. Rgg7 {[%emt 0:00:10]} Re8 {[%emt 0:00:04]} 40. Rh7 {[%emt 0:00:00]} h4 {[%emt 0:00:00]} 41. Rh6 {[%emt 0:01:05]} Kc8 {[%emt 0:02:45]} 42. Rhh7 {[%emt 0:00:55]} Bd8 {[%emt 0:00:09]} 43. a4 {[%emt 0:00:18]} a6 {[%emt 0:01:10][%cal Ba7a6,Ba6a5][%mdl 32]} 44. Rd7 {[%emt 0:01:06]} (44. a5 $142) 44... Re4 {[%emt 0:00:27]} 45. Kb3 {[%emt 0:00:48]} a5 {[%emt 0:03:46]} 46. b5 {[%emt 0:00:05]} cxb5 {[%emt 0:01:17]} 47. axb5 {[%emt 0:00:05]} Rb4+ {[%emt 0:00:09]} 48. Ka2 {[%emt 0:00:35]} Nxb5 {[%emt 0:00:48] ( -> ...a4)} 49. Rdf7 {[%emt 0:00:31]} a4 {[%emt 0:00:40]} 50. Rf3 {[%emt 0:00:31] [#]} Bf6 $1 {[%emt 0:02:21] Weighted Error Value: White=0.66/Black=0.18 (very precise)} 0-1